fUST/lending_fUST_20260606
["ID","MTS","AMOUNT","RATE_DAILY","PERIOD"]
[424283332,1780746638000,-569.07059238,0.00015721,2]
[424283334,1780746638000,-569.07059238,0.00015721,2]
[424283333,1780746638000,-569.07059238,0.00015721,2]
[424283321,1780746638000,-569.07059238,0.00015721,2]
[424283369,1780746638000,-507.50125422,0.00018172,2]
[424283343,1780746638000,-554.08982868,0.00015722,7]
[424283370,1780746638000,-500.0,0.00018172,2]
[424283403,1780746638000,-300.0,0.00020001,2]
[424283401,1780746638000,-1966.50161793,0.000198,2]
[424283398,1780746638000,-2307.1394022,0.00019661,2]
[424283399,1780746638000,-1101.7773672,0.00019661,2]
[424283405,1780746638000,-313.21909913,0.00020208,2]
[424283402,1780746638000,-186.64,0.00019875,2]
[424283404,1780746638000,-274.06671174,0.00020208,2]
[424283407,1780746638000,-251.20392304,0.00020269,2]
[424283406,1780746638000,-488.91543754,0.00020208,2]
[424283408,1780746638000,-600.0,0.0002063,2]
[424283410,1780746638000,-209.132366,0.00020884,2]
[424283411,1780746638000,-151.0,0.000209,3]
[424283400,1780746638000,-152.0,0.00019771,2]
[424283415,1780746638000,-3817.33251147,0.00021,2]
[424283409,1780746638000,-197.19804043,0.000208,2]
[424283417,1780746638000,-506.52715559,0.00021011,2]
[424283413,1780746638000,-506.83267668,0.00020968,2]
[424283414,1780746638000,-506.83267668,0.00020971,2]
[424283418,1780746638000,-506.83267668,0.00021027,2]
[424283420,1780746638000,-651.0,0.00021054,2]
[424283419,1780746638000,-506.83267668,0.00021048,2]
[424283422,1780746638000,-506.83267668,0.00021067,2]
[424283421,1780746638000,-506.83267668,0.00021057,2]
[424283424,1780746638000,-506.83267668,0.00021088,2]
[424283366,1780746638000,-500.0,0.00018172,2]
[424283423,1780746638000,-506.83267668,0.0002107,2]
[424283416,1780746638000,-227755.01781926,0.00021,2]
[424283397,1780746638000,-2950.2544332,0.00019647,2]
[424283412,1780746638000,-151.0,0.000209,4]
[424283368,1780746638000,-500.0,0.00018172,2]
[424283396,1780746638000,-178.1097243,0.00019644,2]
[424283371,1780746638000,-331.61,0.00018448,2]
[424283372,1780746638000,-500.0,0.00018448,2]
[424283373,1780746638000,-184.75723124,0.00018494,2]
[424283376,1780746638000,-1118.84699218,0.000191,2]
[424283375,1780746638000,-209.132366,0.00019068,2]
[424283381,1780746638000,-172.5757068,0.00019387,2]
[424283374,1780746638000,-219.39919013,0.00018734,2]
[424283378,1780746638000,-1966.50161793,0.000193,2]
[424283377,1780746638000,-847.65462575,0.000191,2]
[424283379,1780746638000,-151.5,0.00019387,2]
[424283383,1780746638000,-500.0,0.00019387,2]
[424283382,1780746638000,-500.0,0.00019387,2]
[424283380,1780746638000,-151.5,0.00019387,2]
[424283384,1780746638000,-500.0,0.00019387,2]
[424283395,1780746638000,-1401.72619043,0.00019643,2]
[424283393,1780746638000,-1966.50161793,0.000196,2]
[424283391,1780746638000,-1966.50161793,0.000194,2]
[424283390,1780746638000,-205.61067487,0.00019387,2]
[424283394,1780746638000,-307.06418257,0.00019643,2]
[424283392,1780746638000,-169.54,0.00019599,2]
[424283367,1780746638000,-500.0,0.00018172,2]
[424283387,1780746638000,-500.0,0.00019387,2]
[424283388,1780746638000,-500.0,0.00019387,2]
[424283385,1780746638000,-500.0,0.00019387,2]
[424283386,1780746638000,-500.0,0.00019387,2]
[424283389,1780746638000,-500.0,0.00019387,2]
[424283470,1780746639000,-326.3819852,0.00021659,2]
[424283466,1780746639000,-151.0,0.00021659,2]
[424283462,1780746639000,-151.0,0.00021659,2]
[424283459,1780746639000,-151.0,0.00021659,2]
[424283463,1780746639000,-457.1957263,0.00021659,2]
[424283465,1780746639000,-457.1957263,0.00021659,2]
[424283467,1780746639000,-326.3819852,0.00021659,2]
[424283468,1780746639000,-457.1957263,0.00021659,2]
[424283461,1780746639000,-326.3819852,0.00021659,2]
[424283460,1780746639000,-151.0,0.00021659,2]
[424283456,1780746639000,-326.3819852,0.00021659,2]
[424283464,1780746639000,-151.0,0.00021659,2]
[424283458,1780746639000,-326.3819852,0.00021659,2]
[424283484,1780746639000,-160.0,0.00022236,14]
[424283471,1780746639000,-160.0,0.0002174,3]
[424283473,1780746639000,-209.8279003,0.00021945,14]
[424283476,1780746639000,-300.0,0.00022106,2]
[424283472,1780746639000,-209.8279003,0.00021945,7]
[424283475,1780746639000,-189.06009682,0.00021947,14]
[424283474,1780746639000,-189.06009683,0.00021947,7]
[424283477,1780746639000,-160.0,0.00022118,14]
[424283481,1780746639000,-183.018965,0.00022118,14]
[424283480,1780746639000,-166.02644,0.00022118,14]
[424283479,1780746639000,-163.01322,0.00022118,14]
[424283482,1780746639000,-164.877068,0.00022118,14]
[424283483,1780746639000,-4649.0,0.000222,2]
[424283457,1780746639000,-457.1957263,0.00021659,2]
[424283469,1780746639000,-457.1957263,0.00021659,2]
[424283453,1780746639000,-151.0,0.00021659,2]
[424283427,1780746639000,-506.83267668,0.00021198,2]
[424283455,1780746639000,-151.0,0.00021659,2]
[424283492,1780746639000,-651.0,0.00022397,3]
[424283426,1780746639000,-506.83267668,0.00021195,2]
[424283428,1780746639000,-506.83267668,0.00021286,2]
[424283429,1780746639000,-506.83267668,0.00021294,2]
[424283425,1780746639000,-506.52715559,0.0002119,2]
[424283430,1780746639000,-209.8279003,0.00021306,7]
[424283432,1780746639000,-189.06009683,0.00021308,7]
[424283431,1780746639000,-209.8279003,0.00021306,14]
[424283433,1780746639000,-189.06009682,0.00021308,14]
[424283435,1780746639000,-506.83267668,0.00021342,2]
[424283434,1780746639000,-506.83267668,0.00021318,2]
[424283437,1780746639000,-506.83267668,0.0002137,2]
[424283436,1780746639000,-506.83267668,0.00021348,2]
[424283443,1780746639000,-3632.0,0.00021519,2]
[424283440,1780746639000,-1837.0,0.00021519,2]
[424283438,1780746639000,-651.0,0.00021385,2]
[424283439,1780746639000,-413.89669367,0.00021385,2]
[424283442,1780746639000,-185.0,0.00021519,2]
[424283445,1780746639000,-457.1957263,0.00021659,2]
[424283444,1780746639000,-457.1957263,0.00021659,2]
[424283447,1780746639000,-457.1957263,0.00021659,2]
[424283446,1780746639000,-151.0,0.00021659,2]
[424283448,1780746639000,-151.0,0.00021659,2]
[424283449,1780746639000,-151.0,0.00021659,2]
[424283450,1780746639000,-457.1957263,0.00021659,2]
[424283452,1780746639000,-326.3819852,0.00021659,2]
[424283451,1780746639000,-151.6374576,0.00021659,2]
[424283454,1780746639000,-151.0,0.00021659,2]
[424283491,1780746639000,-217.809631,0.00022339,14]
[424283441,1780746639000,-2207.0,0.00021519,2]
[424283485,1780746639000,-200.296543,0.00022236,14]
[424283523,1780746639000,-326.3819852,0.00022569,2]
[424283524,1780746639000,-245.9673547,0.00022569,2]
[424283527,1780746639000,-457.1957263,0.00022569,2]
[424283529,1780746639000,-326.3819852,0.00022569,2]
[424283525,1780746639000,-151.0,0.00022569,2]
[424283535,1780746639000,-457.1957263,0.00022569,2]
[424283536,1780746639000,-326.3819852,0.00022569,2]
[424283532,1780746639000,-151.0,0.00022569,2]
[424283533,1780746639000,-151.0,0.00022569,2]
[424283530,1780746639000,-457.1957263,0.00022569,2]
[424283531,1780746639000,-151.0,0.00022569,2]
[424283538,1780746639000,-457.1957263,0.00022569,2]
[424283540,1780746639000,-461.3752986,0.00022569,2]
[424283521,1780746639000,-151.0,0.00022569,2]
[424283541,1780746639000,-457.1957263,0.00022569,2]
[424283542,1780746639000,-457.1957263,0.00022569,2]
[424283545,1780746639000,-457.1957263,0.00022569,2]
[424283547,1780746639000,-326.3819852,0.00022569,2]
[424283544,1780746639000,-326.3819852,0.00022569,2]
[424283548,1780746639000,-457.1957263,0.00022569,2]
[424283543,1780746639000,-151.0,0.00022569,2]
[424283546,1780746639000,-151.0,0.00022569,2]
[424283549,1780746639000,-457.1957263,0.00022569,2]
[424283550,1780746639000,-326.3819852,0.00022569,2]
[424283551,1780746639000,-457.1957263,0.00022569,2]
[424283552,1780746639000,-151.0,0.00022569,2]
[424283553,1780746639000,-457.1957263,0.00022569,2]
[424283495,1780746639000,-457.1957263,0.00022481,2]
[424283539,1780746639000,-326.3819852,0.00022569,2]
[424283518,1780746639000,-151.0,0.00022569,2]
[424283537,1780746639000,-151.0,0.00022569,2]
[424283519,1780746639000,-457.1957263,0.00022569,2]
[424283489,1780746639000,-809.546575,0.00022238,14]
[424283516,1780746639000,-151.0,0.00022569,2]
[424283494,1780746639000,-261.9717416,0.00022481,2]
[424283486,1780746639000,-240.593087,0.00022236,14]
[424283488,1780746639000,-484.773287,0.00022238,14]
[424283490,1780746639000,-500.0,0.00022323,5]
[424283493,1780746639000,-678.88887832,0.00022397,3]
[424283487,1780746639000,-160.0,0.00022238,14]
[424283496,1780746639000,-326.3819852,0.00022481,2]
[424283499,1780746639000,-326.3819852,0.00022569,2]
[424283505,1780746639000,-329.2225157,0.00022569,2]
[424283506,1780746639000,-457.1957263,0.00022569,2]
[424283507,1780746639000,-151.0717929,0.00022569,2]
[424283498,1780746639000,-326.3819852,0.00022481,2]
[424283497,1780746639000,-457.1957263,0.00022481,2]
[424283501,1780746639000,-326.3819852,0.00022569,2]
[424283515,1780746639000,-457.1957263,0.00022569,2]
[424283500,1780746639000,-457.1957263,0.00022569,2]
[424283514,1780746639000,-151.0,0.00022569,2]
[424283513,1780746639000,-219.7539754,0.00022569,2]
[424283510,1780746639000,-151.0,0.00022569,2]
[424283512,1780746639000,-457.1957263,0.00022569,2]
[424283511,1780746639000,-457.1957263,0.00022569,2]
[424283517,1780746639000,-457.1957263,0.00022569,2]
[424283508,1780746639000,-151.0,0.00022569,2]
[424283504,1780746639000,-457.1957263,0.00022569,2]
[424283503,1780746639000,-326.3819852,0.00022569,2]
[424283502,1780746639000,-457.1957263,0.00022569,2]
[424283509,1780746639000,-151.0,0.00022569,2]
[424283597,1780746640000,-651.0,0.00023002,3]
[424283588,1780746640000,-651.0,0.00023002,3]
[424283596,1780746640000,-651.0,0.00023002,3]
[424283599,1780746640000,-651.0,0.00023002,3]
[424283594,1780746640000,-172.0,0.00023002,3]
[424283592,1780746640000,-166.0,0.00023002,3]
[424283593,1780746640000,-166.0,0.00023002,3]
[424283591,1780746640000,-166.0,0.00023002,3]
[424283589,1780746640000,-653.49884394,0.00023002,3]
[424283587,1780746640000,-651.0,0.00023002,3]
[424283600,1780746640000,-651.0,0.00023002,3]
[424283590,1780746640000,-166.0,0.00023002,3]
[424283598,1780746640000,-651.0,0.00023002,3]
[424283614,1780746640000,-581.727945,0.0002335,14]
[424283601,1780746640000,-651.0,0.00023002,3]
[424283613,1780746640000,-240.355852,0.00023348,14]
[424283603,1780746640000,-220.209448,0.00023072,14]
[424283605,1780746640000,-200.0,0.000231,2]
[424283602,1780746640000,-160.0,0.00023072,14]
[424283606,1780746640000,-284.728968,0.00023117,14]
[424283604,1780746640000,-280.418896,0.00023072,14]
[424283607,1780746640000,-160.0,0.00023117,14]
[424283610,1780746640000,-343.392276,0.00023117,14]
[424283612,1780746640000,-195.615864,0.00023224,14]
[424283609,1780746640000,-384.883299,0.00023117,14]
[424283611,1780746640000,-331.47980012,0.00023138,2]
[424283584,1780746640000,-235.647168,0.00022923,14]
[424283595,1780746640000,-651.0,0.00023002,3]
[424283583,1780746640000,-246.957502,0.00022923,14]
[424283554,1780746640000,-457.1957263,0.00022569,2]
[424283581,1780746640000,-160.0,0.00022923,14]
[424283616,1780746640000,-300.0,0.00023589,5]
[424283557,1780746640000,-151.0,0.00022569,2]
[424283561,1780746640000,-326.3819852,0.00022569,2]
[424283558,1780746640000,-220.3329109,0.00022569,2]
[424283555,1780746640000,-457.1957263,0.00022569,2]
[424283559,1780746640000,-457.1957263,0.00022569,2]
[424283560,1780746640000,-151.0,0.00022569,2]
[424283556,1780746640000,-326.3819852,0.00022569,2]
[424283562,1780746640000,-457.1957263,0.00022569,2]
[424283563,1780746640000,-326.3819852,0.00022569,2]
[424283564,1780746640000,-326.3819852,0.00022569,2]
[424283565,1780746640000,-326.3819852,0.00022569,2]
[424283567,1780746640000,-326.3819853,0.00022569,2]
[424283570,1780746640000,-457.1957263,0.00022569,2]
[424283566,1780746640000,-326.3819852,0.00022569,2]
[424283569,1780746640000,-326.3819852,0.00022569,2]
[424283568,1780746640000,-457.1957263,0.00022569,2]
[424283572,1780746640000,-209.8279003,0.00022584,14]
[424283574,1780746640000,-189.06009682,0.00022587,14]
[424283571,1780746640000,-209.8279003,0.00022584,7]
[424283573,1780746640000,-189.06009683,0.00022587,7]
[424283576,1780746640000,-248.962116,0.0002269,14]
[424283575,1780746640000,-160.0,0.0002269,14]
[424283578,1780746640000,-720.0,0.00022692,10]
[424283577,1780746640000,-337.924233,0.0002269,14]
[424283580,1780746640000,-309.357726,0.00022923,14]
[424283579,1780746640000,-247.315602,0.00022902,14]
[424283585,1780746640000,-637.43590299,0.00023,2]
[424283582,1780746640000,-203.478751,0.00022923,14]
[424283586,1780746640000,-160.0,0.00023,2]
[424283615,1780746640000,-160.0,0.00023357,4]
[424283608,1780746640000,-272.441649,0.00023117,14]
[424283625,1780746640000,-300.0,0.00023589,5]
[424283653,1780746640000,-151.0,0.00023778,2]
[424283652,1780746640000,-151.0,0.00023778,2]
[424283656,1780746640000,-151.0,0.00023778,2]
[424283655,1780746640000,-151.0,0.00023778,2]
[424283654,1780746640000,-151.0,0.00023778,2]
[424283657,1780746640000,-151.0,0.00023778,2]
[424283662,1780746640000,-151.87,0.00023783,7]
[424283659,1780746640000,-151.0,0.00023778,2]
[424283663,1780746640000,-220.21812969,0.00023788,7]
[424283660,1780746640000,-151.0,0.00023778,2]
[424283658,1780746640000,-151.0,0.00023778,2]
[424283661,1780746640000,-208.67,0.00023778,2]
[424283664,1780746640000,-174.88,0.00023788,7]
[424283651,1780746640000,-151.0,0.00023778,2]
[424283665,1780746640000,-227.59,0.00023815,7]
[424283669,1780746640000,-152.31,0.00023828,7]
[424283668,1780746640000,-229.83,0.00023825,7]
[424283671,1780746640000,-174.88,0.00023838,7]
[424283667,1780746640000,-298.75454,0.00023824,14]
[424283675,1780746640000,-229.83,0.00023875,7]
[424283672,1780746640000,-1000.0,0.0002384,5]
[424283674,1780746640000,-227.59,0.00023865,7]
[424283676,1780746640000,-152.31,0.00023878,7]
[424283673,1780746640000,-1000.0,0.0002386,5]
[424283678,1780746640000,-151.87,0.00023883,7]
[424283677,1780746640000,-1000.0,0.0002388,5]
[424283679,1780746640000,-174.89162594,0.00023888,7]
[424283620,1780746640000,-300.0,0.00023589,5]
[424283666,1780746640000,-1856.847456,0.0002382,5]
[424283648,1780746640000,-151.0,0.00023778,2]
[424283670,1780746640000,-151.87,0.00023833,7]
[424283649,1780746640000,-151.0,0.00023778,2]
[424283617,1780746640000,-300.0,0.00023589,5]
[424283646,1780746640000,-151.0,0.00023778,2]
[424283621,1780746640000,-300.0,0.00023589,5]
[424283624,1780746640000,-300.0,0.00023589,5]
[424283618,1780746640000,-300.0,0.00023589,5]
[424283622,1780746640000,-300.0,0.00023589,5]
[424283619,1780746640000,-300.0,0.00023589,5]
[424283626,1780746640000,-300.0,0.00023589,5]
[424283627,1780746640000,-300.0,0.00023589,5]
[424283629,1780746640000,-151.87,0.00023683,7]
[424283631,1780746640000,-151.87,0.00023733,7]
[424283628,1780746640000,-180.35280384,0.00023619,7]
[424283630,1780746640000,-189.84,0.00023683,7]
[424283632,1780746640000,-189.85064845,0.00023733,7]
[424283623,1780746640000,-300.0,0.00023589,5]
[424283635,1780746640000,-151.0,0.00023778,2]
[424283650,1780746640000,-151.0,0.00023778,2]
[424283644,1780746640000,-151.0,0.00023778,2]
[424283633,1780746640000,-300.0,0.00023753,7]
[424283647,1780746640000,-151.0,0.00023778,2]
[424283645,1780746640000,-151.0,0.00023778,2]
[424283641,1780746640000,-151.0,0.00023778,2]
[424283642,1780746640000,-151.0,0.00023778,2]
[424283643,1780746640000,-151.0,0.00023778,2]
[424283639,1780746640000,-151.0,0.00023778,2]
[424283640,1780746640000,-151.0,0.00023778,2]
[424283636,1780746640000,-151.0,0.00023778,2]
[424283637,1780746640000,-151.0,0.00023778,2]
[424283638,1780746640000,-151.0,0.00023778,2]
[424283634,1780746640000,-300.0,0.00023753,7]
[424283710,1780746641000,-152.0,0.00024114,30]
[424283703,1780746641000,-717.119923,0.0002407,14]
[424283705,1780746641000,-10000.0,0.0002408,30]
[424283702,1780746641000,-261.931545,0.0002407,14]
[424283706,1780746641000,-151.87,0.00024083,7]
[424283707,1780746641000,-273.13745849,0.000241,2]
[424283704,1780746641000,-244.174501,0.0002407,14]
[424283713,1780746641000,-151.87,0.00024133,7]
[424283715,1780746641000,-152.0,0.0002415,30]
[424283709,1780746641000,-200.0,0.000241,2]
[424283711,1780746641000,-227.59,0.00024115,7]
[424283712,1780746641000,-376.51219907,0.0002412,45]
[424283714,1780746641000,-2674.84007637,0.00024138,2]
[424283717,1780746641000,-151.87,0.00024183,7]
[424283718,1780746641000,-166.0,0.00024213,120]
[424283696,1780746641000,-227.59,0.00024015,7]
[424283724,1780746641000,-202.21946034,0.00024238,7]
[424283708,1780746641000,-9316.063832,0.000241,2]
[424283698,1780746641000,-151.87,0.00024033,7]
[424283684,1780746641000,-152.42658451,0.00023928,7]
[424283694,1780746641000,-400.0,0.00024,5]
[424283716,1780746641000,-227.59,0.00024165,7]
[424283680,1780746641000,-1000.0,0.000239,5]
[424283685,1780746641000,-151.87,0.00023933,7]
[424283681,1780746641000,-227.59,0.00023915,7]
[424283682,1780746641000,-1000.0,0.0002392,5]
[424283683,1780746641000,-229.83,0.00023925,7]
[424283688,1780746641000,-227.59,0.00023965,7]
[424283686,1780746641000,-1000.0,0.0002394,5]
[424283697,1780746641000,-238.27301389,0.00024024,7]
[424283687,1780746641000,-1000.0,0.0002396,5]
[424283689,1780746641000,-229.84733622,0.00023975,7]
[424283692,1780746641000,-160.0,0.00024,7]
[424283691,1780746641000,-151.87,0.00023983,7]
[424283699,1780746641000,-227.59,0.00024065,7]
[424283700,1780746641000,-227.150633,0.0002407,14]
[424283701,1780746641000,-320.925209,0.0002407,14]
[424283693,1780746641000,-155.82614264,0.00024,120]
[424283695,1780746641000,-1000.0,0.00024,5]
[424283690,1780746641000,-1000.0,0.0002398,5]
[424283725,1780746641000,-351.85214325,0.00024238,7]
[424283751,1780746641000,-474.73673497,0.00024238,2]
[424283726,1780746641000,-351.85214324,0.00024238,7]
[424283745,1780746641000,-750.11480892,0.00024238,2]
[424283744,1780746641000,-6390.46835332,0.00024238,2]
[424283743,1780746641000,-712.8475286,0.00024238,2]
[424283748,1780746641000,-58126.22684711,0.00024238,2]
[424283749,1780746641000,-589.88942685,0.00024238,2]
[424283750,1780746641000,-515.05281048,0.00024238,2]
[424283752,1780746641000,-25432.62185549,0.00024238,10]
[424283753,1780746641000,-191.91850962,0.00024238,2]
[424283754,1780746641000,-1212.74206649,0.00024238,2]
[424283756,1780746641000,-53425.28832489,0.00024238,7]
[424283758,1780746641000,-983.59412008,0.00024238,7]
[424283755,1780746641000,-1417.51920364,0.00024238,2]
[424283759,1780746641000,-1178.98896994,0.00024238,7]
[424283757,1780746641000,-368.75,0.00024238,7]
[424283760,1780746641000,-364.89671325,0.00024238,7]
[424283762,1780746641000,-2982.31923397,0.00024238,7]
[424283761,1780746641000,-1688.74295023,0.00024238,7]
[424283742,1780746641000,-158.8830727,0.00024238,2]
[424283723,1780746641000,-151.87,0.00024233,7]
[424283746,1780746641000,-159.85817069,0.00024238,2]
[424283741,1780746641000,-1381.80087296,0.00024238,2]
[424283719,1780746641000,-150.0,0.00024214,30]
[424283720,1780746641000,-227.59,0.00024215,7]
[424283722,1780746641000,-594.56551,0.00024226,14]
[424283721,1780746641000,-308.024102,0.00024226,14]
[424283727,1780746641000,-34709.46387466,0.00024238,7]
[424283728,1780746641000,-15812.86760596,0.00024238,2]
[424283729,1780746641000,-150.0,0.00024238,2]
[424283730,1780746641000,-2188.31785982,0.00024238,2]
[424283747,1780746641000,-168.29586561,0.00024238,7]
[424283731,1780746641000,-795.62776131,0.00024238,2]
[424283738,1780746641000,-296.16185479,0.00024238,2]
[424283739,1780746641000,-52484.67233296,0.00024238,2]
[424283737,1780746641000,-331.84289159,0.00024238,2]
[424283735,1780746641000,-822.06110727,0.00024238,2]
[424283733,1780746641000,-2883.07371744,0.00024238,7]
[424283734,1780746641000,-300.0,0.00024238,2]
[424283736,1780746641000,-246.41533293,0.00024238,10]
[424283740,1780746641000,-646.58116384,0.00024238,2]
[424283732,1780746641000,-92679.68877298,0.00024238,2]
[424283767,1780746643000,-17640.16221869,0.00024238,7]
[424283770,1780746643000,-615.80411061,0.00024238,7]
[424283768,1780746643000,-768.45055747,0.00024238,7]
[424283769,1780746643000,-2070.0,0.00024238,7]
[424283773,1780746643000,-420.8168224,0.00024238,7]
[424283771,1780746643000,-7379.06770244,0.00024238,7]
[424283772,1780746643000,-3745.2009488,0.00024238,7]
[424283784,1780746646000,-2756.76746922,0.00024238,7]
[424283783,1780746646000,-15000.0,0.00024238,7]
[424283781,1780746646000,-61884.85674459,0.00024238,7]
[424283782,1780746646000,-851.69041459,0.00024238,7]
[424283821,1780746898000,-199.70372471,0.00015244,2]
[424283822,1780746911000,-199.70372471,0.00015244,2]
[424283824,1780746923000,-2066.7221862,0.00015244,2]
[424283825,1780746936000,-2066.7221862,0.00015244,2]
[424283986,1780747544000,-357.26982633,0.00014921,2]
[424283987,1780747640000,-357.26982633,0.00014478,2]
[424283988,1780747640000,-1303.73061847,0.00014624,2]
[424283996,1780747759000,-500.0,0.00014431,2]
[424284003,1780747759000,-500.0,0.00014431,2]
[424284001,1780747759000,-551.58384053,0.00014431,2]
[424283999,1780747759000,-500.0,0.00014431,2]
[424283998,1780747759000,-500.0,0.00014431,2]
[424283997,1780747759000,-500.0,0.00014431,2]
[424283990,1780747759000,-286.35488675,0.00014431,2]
[424283994,1780747759000,-155.70526643,0.00014431,2]
[424283992,1780747759000,-500.0,0.00014431,2]
[424283993,1780747759000,-192.83570801,0.00014431,2]
[424283991,1780747759000,-500.0,0.00014431,2]
[424284004,1780747759000,-500.0,0.00014431,2]
[424283989,1780747759000,-10000.0,0.00014332,2]
[424283995,1780747759000,-500.0,0.00014431,2]
[424284002,1780747759000,-500.0,0.00014431,2]
[424284000,1780747759000,-500.0,0.00014431,2]
[424284006,1780747759000,-500.0,0.00014431,2]
[424284019,1780747759000,-500.0,0.00014431,2]
[424284018,1780747759000,-500.0,0.00014431,2]
[424284017,1780747759000,-500.0,0.00014431,2]
[424284016,1780747759000,-500.0,0.00014431,2]
[424284015,1780747759000,-500.0,0.00014431,2]
[424284013,1780747759000,-500.0,0.00014431,2]
[424284012,1780747759000,-500.0,0.00014431,2]
[424284011,1780747759000,-500.0,0.00014431,2]
[424284007,1780747759000,-500.0,0.00014431,2]
[424284009,1780747759000,-177.45118563,0.00014431,2]
[424284020,1780747759000,-258.62398286,0.00014431,2]
[424284010,1780747759000,-500.0,0.00014431,2]
[424284008,1780747759000,-500.0,0.00014431,2]
[424284014,1780747759000,-500.0,0.00014431,2]
[424284005,1780747759000,-500.0,0.00014431,2]
[424284022,1780747774000,-148.40753138,0.00014431,2]
[424284021,1780747774000,-241.37601714,0.00014431,2]
[424284056,1780747831000,-958.77497511,0.00014145,2]
[424284059,1780747831000,-2613.59134146,0.00014145,2]
[424284074,1780747832000,-300.0,0.00014771,2]
[424284060,1780747832000,-448.13529609,0.00014288,2]
[424284067,1780747832000,-200.0,0.00014517,2]
[424284068,1780747832000,-200.21,0.00014517,7]
[424284063,1780747832000,-4551.86470391,0.00014288,2]
[424284070,1780747832000,-33.51376847,0.00014524,2]
[424284072,1780747832000,-146.32495798,0.00014524,2]
[424284076,1780747832000,-395.03256366,0.00014921,2]
[424284065,1780747832000,-3768.52,0.00014432,2]
[424284285,1780747838000,-5000.0,0.00021699,2]
[424284272,1780747838000,-710.98761001,0.00014921,2]
[424284273,1780747838000,-165.1062,0.00015552,2]
[424284274,1780747838000,-175.20801154,0.0001589,3]
[424284276,1780747838000,-174.13705883,0.000191,2]
[424284278,1780747838000,-186.64,0.00019873,2]
[424284279,1780747838000,-645.0713994,0.0002024,2]
[424284281,1780747838000,-162.0,0.00020822,3]
[424284277,1780747838000,-174.13705883,0.000193,2]
[424284286,1780747838000,-5000.0,0.00021699,2]
[424284287,1780747838000,-4780.35716987,0.00021699,2]
[424284284,1780747838000,-5000.0,0.00021699,2]
[424284275,1780747838000,-179.83872644,0.00018149,2]
[424284280,1780747838000,-12226.1435817,0.00020595,2]
[424284283,1780747838000,-5000.0,0.00021699,2]
[424284282,1780747838000,-444.0,0.00021094,2]
[424284307,1780747840000,-954.63932051,0.00021872,2]
[424284305,1780747840000,-179.83872644,0.00021774,2]
[424284304,1780747840000,-219.64283013,0.00021699,2]
[424284306,1780747840000,-1706.9198876,0.00021872,2]
[424284331,1780747846000,-6856.76496003,0.00021872,2]
[424284333,1780747846000,-22389.44834273,0.00021872,2]
[424284332,1780747846000,-16438.44719383,0.00021872,2]
[424284356,1780748005000,-2568.91837594,0.00014025,2]
[424284357,1780748059000,-152.0,0.00014167,2]
[424284358,1780748072000,-152.0,0.00014167,2]
[424284416,1780748085000,-500.0,0.00014167,2]
[424284438,1780748097000,-500.0,0.00014167,2]
[424284439,1780748110000,-215.93,0.00014167,2]
[424284440,1780748163000,-809.86063362,0.00014167,2]
[424284441,1780748217000,-3219.32477772,0.00014167,2]
[424284442,1780748229000,-3219.32477772,0.00014167,2]
[424284443,1780748242000,-1684.16044456,0.00014167,2]
[424284445,1780748559000,-870.5516993,0.00014516,2]
[424284446,1780748571000,-870.5516993,0.00014516,2]
[424284447,1780748584000,-2744.6739879,0.00014516,2]
[424284448,1780748597000,-300.0,0.00014516,2]
[424284449,1780748609000,-214.2226135,0.00014516,2]
[424284450,1780748663000,-600.0,0.00014805,2]
[424284451,1780748708000,-331.61,0.00014805,2]
[424284452,1780748720000,-331.61,0.00014805,2]